fUSD/lending_fUSD_20240718
["ID","MTS","AMOUNT","RATE_DAILY","PERIOD"]
[332554499,1721292703989,-151.0,0.00036154,7]
[332554500,1721292703999,-802.657947,0.00036154,7]
[332554501,1721292704008,-802.657947,0.00036154,7]
[332554502,1721292704018,-802.657947,0.00036154,7]
[332554503,1721292704027,-802.657947,0.00036154,7]
[332554504,1721292704037,-802.657947,0.00036154,7]
[332554505,1721292704046,-802.657947,0.00036154,7]
[332554506,1721292704056,-802.657947,0.00036154,7]
[332554507,1721292704066,-802.657947,0.00036154,7]
[332554508,1721292704076,-802.657947,0.00036154,7]
[332554509,1721292704087,-802.657947,0.00036154,7]
[332554510,1721292704097,-802.657947,0.00036154,7]
[332554511,1721292704107,-802.657947,0.00036154,7]
[332554512,1721292704117,-802.657947,0.00036154,7]
[332554513,1721292704126,-802.657938,0.00036154,7]
[332554514,1721292704136,-227.923935,0.00036154,7]
[332554515,1721292704146,-151.0,0.00036154,7]
[332554516,1721292704157,-151.0,0.00036154,7]
[332554517,1721292704167,-151.0,0.00036154,7]
[332554518,1721292704177,-151.0,0.00036154,7]
[332554519,1721292704187,-151.0,0.00036154,7]
[332554520,1721292704196,-151.0,0.00036154,7]
[332554521,1721292704207,-151.0,0.00036154,7]
[332554522,1721292704216,-151.0,0.00036154,7]
[332554523,1721292704226,-151.0,0.00036154,7]
[332554524,1721292704235,-151.0,0.00036154,7]
[332554525,1721292704245,-296.616328,0.00036154,7]
[332554526,1721292704255,-296.616328,0.00036154,7]
[332554527,1721292704688,-296.616328,0.00036154,7]
[332554528,1721292704698,-296.616328,0.00036154,7]
[332554529,1721292704708,-296.616328,0.00036154,7]
[332554530,1721292704717,-296.616328,0.00036154,7]
[332554531,1721292704727,-296.616328,0.00036154,7]
[332554532,1721292704737,-296.616328,0.00036154,7]
[332554533,1721292704747,-296.616328,0.00036154,7]
[332554534,1721292704757,-296.616328,0.00036154,7]
[332554535,1721292704768,-296.616328,0.00036154,7]
[332554536,1721292704778,-296.616328,0.00036154,7]
[332554537,1721292704789,-296.616328,0.00036154,7]
[332554538,1721292704798,-296.616322,0.00036154,7]
[332554539,1721292704810,-7952.256722,0.00036154,7]
[332554540,1721292704820,-215.003852,0.00036154,7]
[332554541,1721292704830,-7952.256722,0.00036154,7]
[332554542,1721292704840,-215.003852,0.00036154,7]
[332554543,1721292704849,-7952.256722,0.00036154,7]
[332554544,1721292704858,-215.003852,0.00036154,7]
[332554545,1721292704868,-7952.256722,0.00036154,7]
[332554546,1721292704877,-215.003852,0.00036154,7]
[332554547,1721292704886,-7952.256722,0.00036154,7]
[332554548,1721292704896,-215.003852,0.00036154,7]
[332554549,1721292704906,-7952.256722,0.00036154,7]
[332554550,1721292704916,-7952.256722,0.00036154,7]
[332554551,1721292704926,-215.003852,0.00036154,7]
[332554552,1721292704936,-215.003852,0.00036154,7]
[332554553,1721292704945,-7952.256722,0.00036154,7]
[332554554,1721292704956,-215.003852,0.00036154,7]
[332554555,1721292704967,-7952.256722,0.00036154,7]
[332554556,1721292704977,-215.003852,0.00036154,7]
[332554557,1721292704989,-7952.256718,0.00036154,7]
[332554558,1721292704998,-215.003858,0.00036154,7]
[332554559,1721292705007,-151.0,0.00036154,7]
[332554560,1721292705018,-151.0,0.00036154,7]
[332554561,1721292705029,-269.843128,0.00036154,7]
[332554562,1721292705039,-1937.175774,0.00036154,7]
[332554563,1721292705048,-1937.175774,0.00036154,7]
[332554564,1721292705057,-1937.175774,0.00036154,7]
[332554565,1721292705068,-1937.175774,0.00036154,7]
[332554566,1721292705077,-1937.175774,0.00036154,7]
[332554567,1721292705088,-1937.175774,0.00036154,7]
[332554568,1721292705099,-1937.175774,0.00036154,7]
[332554569,1721292705109,-1937.175774,0.00036154,7]
[332554570,1721292705118,-1937.175774,0.00036154,7]
[332554571,1721292705127,-1937.17578,0.00036154,7]
[332554572,1721292705137,-151.0,0.00036154,7]
[332554573,1721292705147,-151.0,0.00036154,7]
[332554574,1721292705157,-151.0,0.00036154,7]
[332554575,1721292705166,-151.0,0.00036154,7]
[332554576,1721292705177,-151.0,0.00036154,7]
[332554577,1721292705186,-268.358351,0.00036155,7]
[332554578,1721292705197,-151.0,0.00036155,7]
[332554579,1721292705207,-151.0,0.00036155,7]
[332554580,1721292705217,-151.0,0.00036155,7]
[332554581,1721292705226,-171.533658,0.00036155,7]
[332554582,1721292705235,-151.0,0.00036155,7]
[332554583,1721292705244,-151.0,0.00036155,7]
[332554584,1721292705254,-151.0,0.00036155,7]
[332554585,1721292705263,-151.0,0.00036155,7]
[332554586,1721292705272,-151.0,0.00036155,7]
[332554587,1721292705281,-151.0,0.00036155,7]
[332554588,1721292705290,-151.0,0.00036155,7]
[332554589,1721292705299,-151.0,0.00036155,7]
[332554590,1721292705309,-252.95464,0.00036155,7]
[332554591,1721292705318,-280.695203,0.00036155,7]
[332554592,1721292705328,-151.0,0.00036155,7]
[332554593,1721292705337,-151.0,0.00036155,7]
[332554594,1721292705346,-151.0,0.00036155,7]
[332554595,1721292705355,-151.0,0.00036155,7]
[332554596,1721292705365,-151.0,0.00036155,7]
[332554597,1721292705374,-151.0,0.00036155,7]
[332554598,1721292705384,-151.0,0.00036155,7]
[332554599,1721292705393,-151.0,0.00036155,7]
[332554600,1721292705402,-151.0,0.00036155,7]
[332554601,1721292705411,-2600.0,0.00036163,10]
[332554602,1721292705421,-500.0,0.00036163,10]
[332554603,1721292705430,-900.0,0.00036163,10]
[332554604,1721292705439,-900.0,0.00036163,10]
[332554605,1721292705449,-3606.60350515,0.00036164,4]
[332554606,1721292705479,-500.0,0.00021917,2]
[332554607,1721292705488,-151.0,0.00022465,7]
[332554608,1721292705498,-32870.9992239,0.00022946,2]
[332554609,1721292705507,-34437.0847425,0.00036164,4]
[332554610,1721292705518,-85034.99841513,0.00036164,4]
[332554611,1721292705535,-500.0,0.00021917,2]
[332554612,1721292705546,-160.33561149,0.00036164,4]
[332554613,1721292705658,-155.0,0.00021481,2]
[332554614,1721292705667,-500.0,0.00021917,2]
[332554615,1721292705677,-500.0,0.00021917,2]
[332554616,1721292705685,-336.22567174,0.00021917,2]
[332554617,1721292705696,-163.77432826,0.00021917,2]
[332554618,1721292705705,-500.0,0.00021917,2]
[332554619,1721292705714,-500.0,0.00022191,2]
[332554620,1721292705723,-44.22567174,0.00022191,2]
[332554621,1721292705734,-455.77432826,0.00022191,2]
[332554622,1721292705743,-44.22567174,0.00022191,2]
[332554623,1721292705754,-344.4,0.00022191,2]
[332554624,1721292705772,-500.0,0.00021917,2]
[332554625,1721292705782,-111.37432826,0.00022191,2]
[332554626,1721292705791,-500.0,0.00022191,2]
[332554627,1721292705800,-500.0,0.00022191,2]
[332554628,1721292705809,-500.0,0.00022465,2]
[332554629,1721292705821,-500.0,0.00022465,2]
[332554630,1721292705830,-500.0,0.00022465,2]
[332554631,1721292705839,-500.0,0.00022739,2]
[332554632,1721292705849,-500.0,0.00022739,2]
[332554633,1721292705858,-151.0,0.00023013,7]
[332554634,1721292705867,-340.03,0.00023013,2]
[332554635,1721292705876,-151.0,0.00025479,7]
[332554636,1721292705887,-151.0,0.000329,7]
[332554637,1721292705896,-1459.2488272,0.00036164,4]
[332554638,1721292705908,-390.67842279,0.00036164,4]
[332554639,1721292705919,-542.39928832,0.00036164,4]
[332554640,1721292705930,-1517.0343298,0.00036164,4]
[332554641,1721292705941,-855.65800931,0.00036164,4]
[332554642,1721292705954,-4394.81242003,0.00036164,4]
[332554643,1721292705966,-15500.0,0.00036164,4]
[332554644,1721292705976,-1133.48489036,0.00036164,4]
[332554645,1721292705987,-2580.0,0.00036164,4]
[332554646,1721292705998,-996.66153792,0.00036164,4]
[332554647,1721292706008,-151.0,0.00036165,7]
[332554648,1721292706018,-197.98187,0.00036165,7]
[332554649,1721292706027,-197.98187,0.00036165,7]
[332554650,1721292706037,-197.98187,0.00036165,7]
[332554651,1721292706047,-197.98187,0.00036165,7]
[332554652,1721292706056,-197.98187,0.00036165,7]
[332554653,1721292706066,-171.67808533,0.00036165,7]
[332554654,1721292706077,-26.30378467,0.00036165,7]
[332554655,1721292706087,-197.98187,0.00036165,7]
[332554656,1721292706097,-197.98187,0.00036165,7]
[332554657,1721292706106,-197.98187,0.00036165,7]
[332554658,1721292706116,-197.981864,0.00036165,7]
[332554659,1721292706125,-222.71762,0.00036165,7]
[332554660,1721292706134,-151.0,0.00036165,7]
[332554661,1721292706144,-109.40141874,0.00036165,7]
[332554662,1721292706159,-500.0,0.00022191,2]
[332554663,1721292706168,-41.59858126,0.00036165,7]
[332554664,1721292706178,-326.668257,0.00036165,7]
[332554665,1721292706187,-326.668257,0.00036165,7]
[332554666,1721292706196,-326.668257,0.00036165,7]
[332554667,1721292706205,-106.00500863,0.00036165,7]
[332554668,1721292706218,-220.66324837,0.00036165,7]
[332554669,1721292706227,-326.668257,0.00036165,7]
[332554670,1721292706237,-326.668257,0.00036165,7]
[332554671,1721292706246,-326.668257,0.00036165,7]
[332554672,1721292706255,-326.668257,0.00036165,7]
[332554673,1721292706264,-274.61090325,0.00036165,7]
[332554674,1721292706275,-52.05735375,0.00036165,7]
[332554675,1721292706284,-326.66826,0.00036165,7]
[332554676,1721292706293,-151.0,0.00036165,7]
[332554677,1721292706302,-151.577813,0.00036165,7]
[332554678,1721292706311,-266.998399,0.00036165,7]
[332554679,1721292706322,-151.577813,0.00036165,7]
[332554680,1721292706330,-151.577813,0.00036165,7]
[332554681,1721292706340,-151.577813,0.00036165,7]
[332554682,1721292706350,-151.577813,0.00036165,7]
[332554683,1721292706359,-5.64988654,0.00036165,7]
[332554684,1721292706371,-145.92792646,0.00036165,7]
[332554685,1721292706379,-151.577813,0.00036165,7]
[332554686,1721292706389,-41.49426054,0.00036165,7]
[332554687,1721292706400,-110.08355246,0.00036165,7]
[332554688,1721292706409,-151.577813,0.00036165,7]
[332554689,1721292706419,-151.577817,0.00036165,7]
[332554690,1721292706428,-151.0,0.00036165,7]
[332554691,1721292706437,-151.0,0.00036165,7]
[332554692,1721292706447,-151.0,0.00036165,7]
[332554693,1721292706457,-151.0,0.00036165,7]
[332554694,1721292706466,-151.0,0.00036165,7]
[332554695,1721292706475,-151.0,0.00036165,7]
[332554696,1721292706484,-151.0,0.00036165,7]
[332554697,1721292706493,-151.0,0.00036165,7]
[332554698,1721292706503,-151.0,0.00036165,7]
[332554699,1721292706512,-151.0,0.00036165,7]
[332554700,1721292706521,-6751.79144901,0.00036165,5]
[332554712,1721292890914,150.0,0.00013,2]
[332554713,1721292891193,150.0,0.00013,2]
[332554714,1721292891220,150.0,0.00013,2]
[332554715,1721292891241,100.0,0.00013,2]
[332554716,1721292892428,-408.50193513,0.00015,2]
[332554717,1721292893169,-191.49806487,0.00015,2]
[332554724,1721293475311,10000.0,0.00025008,120]
[332554725,1721293524288,-308.50193513,0.00017259,2]
[332554726,1721293524746,-308.26778285,0.00017259,2]
[332554734,1721293707814,-384.25221715,0.00017255,2]
[332554736,1721293759522,-500.0,0.00017168,2]
[332554737,1721293760133,-500.0,0.00017168,2]
[332554738,1721293760690,-192.910426,0.00017168,2]
[332554740,1721293781043,-307.089574,0.00017259,2]
[332554741,1721293781570,-500.0,0.00017259,2]
[332554742,1721293782032,-500.0,0.00017259,2]
[332554743,1721293783832,-200.72455072,0.00017259,2]
[332554744,1721293803124,-409.7153858,0.00020291,5]
[332554745,1721293803194,-500.0,0.0002356,7]
[332554746,1721293803221,-4434.64800426,0.0002469,5]
[332554747,1721293803246,-500.0,0.0002493,12]
[332554748,1721293803273,-240.0,0.00025037,120]
[332554749,1721293803300,-239.2,0.0002606,120]
[332554750,1721293803327,-4434.64800426,0.0002629,5]
[332554751,1721293803350,-500.0,0.000263,17]
[332554752,1721293803373,-750.0,0.00027177,6]
[332554753,1721293803399,-1250.47,0.00027397,10]
[332554754,1721293803427,-240.0,0.00027541,120]
[332554755,1721293803453,-500.0,0.0002767,22]
[332554756,1721293803480,-239.2,0.00028666,120]
[332554757,1721293803506,-33214.69381014,0.00029028,15]
[332554758,1721293803531,-500.0,0.0002904,27]
[332554759,1721293803557,-4434.64800426,0.00029961,5]
[332554760,1721293803580,-382.05581821,0.0003,30]
[332554761,1721293803606,-240.0,0.00030045,120]
[332554762,1721293803630,-500.0,0.00030409,32]
[332554763,1721293803654,-33214.69381014,0.00030789,15]
[332554764,1721293803678,-1338.47,0.00031,120]
[332554765,1721293803705,-239.2,0.00031272,120]
[332554766,1721293803728,-555.0,0.00031358,5]
[332554767,1721293803754,-4434.64800426,0.0003149,6]
[332554768,1721293803778,-500.0,0.00031779,37]
[332554769,1721293803803,-17738.592017,0.0003199,6]
[332554770,1721293803826,-1888470.11714167,0.00032,30]
[332554771,1721293804491,-196.53772344,0.00014173,2]
[332554772,1721293807514,-150.0,0.00031999,7]
[332554773,1721293807549,-1523404.88285833,0.00032,30]
[332554774,1721293807574,-33214.69381014,0.00032549,15]
[332554775,1721293807599,-500.0,0.00032876,14]
[332554776,1721293807626,-500.0,0.00032876,14]
[332554777,1721293807650,-500.0,0.00032876,14]
[332554778,1721293807674,-500.0,0.00032876,14]
[332554779,1721293807701,-500.0,0.00032876,14]
[332554780,1721293807726,-500.0,0.00032876,14]
[332554781,1721293807750,-500.0,0.00032876,14]
[332554782,1721293807774,-500.0,0.00032876,14]
[332554783,1721293807799,-500.0,0.00032876,14]
[332554784,1721293807823,-500.0,0.00032876,14]
[332554785,1721293807846,-500.0,0.00032876,14]
[332554786,1721293807871,-412.8274837,0.00032876,14]
[332554787,1721293807915,-500.0,0.00032876,14]
[332554788,1721293807943,-500.0,0.00032876,14]
[332554789,1721293807974,-500.0,0.00032876,14]
[332554790,1721293808005,-500.0,0.00032876,14]
[332554791,1721293808035,-500.0,0.00032876,14]
[332554792,1721293808060,-500.0,0.00032876,14]
[332554793,1721293808084,-500.0,0.00032876,14]
[332554794,1721293808124,-500.0,0.00032876,14]
[332554795,1721293808157,-500.0,0.00032876,14]
[332554796,1721293808180,-500.0,0.00032876,14]
[332554797,1721293808217,-297.691481,0.00032876,7]
[332554798,1721293808258,-151.0,0.00032876,7]
[332554799,1721293808285,-151.0,0.00032876,7]
[332554800,1721293808311,-151.0,0.00032876,7]
[332554801,1721293808336,-151.0,0.00032876,7]
[332554802,1721293808361,-500.0,0.00033149,42]
[332554803,1721293808386,-304540.50598524,0.00033149,30]
[332554804,1721293808410,-151.0,0.00033149,7]
[332554805,1721293808435,-151.0,0.00033149,7]
[332554806,1721293808461,-151.0,0.00033149,7]
[332554807,1721293808488,-151.0,0.00033149,7]
[332554808,1721293808514,-151.0,0.00033149,7]
[332554809,1721293808539,-151.0,0.00033149,7]
[332554810,1721293808563,-151.0,0.00033149,7]
[332554811,1721293808588,-151.0,0.00033149,7]
[332554812,1721293808612,-151.0,0.00033149,7]
[332554813,1721293808637,-151.0,0.00033149,7]
[332554814,1721293808661,-151.0,0.00033149,7]
[332554815,1721293808686,-151.0,0.00033149,7]
[332554816,1721293808712,-151.0,0.00033149,7]
[332554817,1721293808737,-151.0,0.00033149,7]
[332554818,1721293808762,-151.0,0.00033149,7]
[332554819,1721293808785,-151.0,0.00033149,7]
[332554820,1721293808810,-151.0,0.00033149,7]
[332554821,1721293808834,-151.0,0.00033149,7]
[332554822,1721293808858,-151.0,0.00033149,7]
[332554823,1721293808886,-151.0,0.00033149,7]
[332554824,1721293808911,-151.0,0.00033149,7]
[332554825,1721293808937,-151.0,0.00033149,7]
[332554826,1721293808963,-151.0,0.00033149,7]
[332554827,1721293808988,-500.0,0.0003315,14]
[332554828,1721293809015,-500.0,0.0003315,14]
[332554829,1721293809041,-500.0,0.0003315,14]
[332554830,1721293809066,-500.0,0.0003315,14]
[332554831,1721293809090,-500.0,0.0003315,14]
[332554832,1721293809113,-500.0,0.0003315,14]
[332554833,1721293809138,-500.0,0.0003315,14]
[332554834,1721293809162,-500.0,0.0003315,14]
[332554835,1721293809186,-248.32,0.0003315,14]
[332554836,1721293809211,-500.0,0.0003315,14]
[332554837,1721293809235,-500.0,0.0003315,14]
[332554838,1721293809260,-500.0,0.0003315,14]
[332554839,1721293809284,-500.0,0.0003315,14]
[332554840,1721293809308,-500.0,0.0003315,14]
[332554841,1721293809333,-504.38,0.00033151,120]
[332554842,1721293809359,-500.0,0.00033424,14]
[332554843,1721293809384,-500.0,0.00033424,14]
[332554844,1721293809409,-500.0,0.00033424,14]
[332554845,1721293809433,-500.0,0.00033424,14]
[332554846,1721293809458,-500.0,0.00033424,14]
[332554847,1721293809483,-500.0,0.00033424,14]
[332554848,1721293809506,-500.0,0.00033424,14]
[332554849,1721293809530,-500.0,0.00033424,14]
[332554850,1721293809556,-500.0,0.00033424,14]
[332554851,1721293809581,-500.0,0.00033424,14]
[332554852,1721293809607,-500.0,0.00033424,14]
[332554853,1721293809632,-500.0,0.00033424,14]
[332554854,1721293809658,-156.51,0.000335,31]
[332554855,1721293809682,-151.0,0.00033697,7]
[332554856,1721293809706,-151.0,0.00033697,7]
[332554857,1721293809732,-151.0,0.00033697,7]
[332554858,1721293809983,-500.0,0.00033698,14]
[332554859,1721293810007,-500.0,0.00033698,14]
[332554860,1721293810030,-500.0,0.00033698,14]
[332554861,1721293810053,-500.0,0.00033698,14]
[332554862,1721293810077,-591.86,0.00033698,14]
[332554863,1721293810103,-500.0,0.00033698,14]
[332554864,1721293810126,-500.0,0.00033698,14]
[332554865,1721293810150,-500.0,0.00033972,14]
[332554866,1721293810173,-500.0,0.00033972,14]
[332554867,1721293810197,-291.67,0.00033972,14]
[332554868,1721293810221,-333.32,0.00033972,14]
[332554869,1721293810244,-500.0,0.00033972,14]
[332554870,1721293810267,-500.0,0.00034246,14]
[332554871,1721293810291,-500.0,0.00034246,14]
[332554872,1721293810314,-609.45,0.00034246,14]
[332554873,1721293810338,-33214.69381014,0.0003431,15]
[332554874,1721293810360,-151.0,0.00034478,7]
[332554875,1721293810382,-151.0,0.00034478,7]
[332554876,1721293810404,-151.0,0.00034478,7]
[332554877,1721293810427,-23577.38356686,0.000345,7]
[332554878,1721293810451,-209.9919,0.000345,7]
[332554879,1721293810474,-151.0,0.000345,7]
[332554880,1721293810497,-151.0,0.000345,7]
[332554881,1721293810520,-151.0,0.000345,7]
[332554882,1721293810546,-151.0,0.000345,7]
[332554883,1721293810569,-151.0,0.000345,7]
[332554884,1721293810592,-151.0,0.000345,7]
[332554885,1721293810615,-151.0,0.000345,7]
[332554886,1721293810638,-151.0,0.000345,7]
[332554887,1721293810662,-151.0,0.000345,7]
[332554888,1721293810685,-151.0,0.000345,7]
[332554889,1721293810710,-151.0,0.000345,7]
[332554890,1721293810733,-1201.082603,0.000345,7]
[332554891,1721293810757,-1201.082603,0.000345,7]
[332554892,1721293810780,-500.0,0.00034519,47]
[332554893,1721293810805,-500.0,0.0003452,14]
[332554894,1721293810827,-519.11934642,0.00035171,7]
[332554895,1721293810854,-519.11934633,0.00035171,7]
[332554896,1721293810882,-519.11934633,0.00035171,7]
[332554897,1721293810906,-519.11934633,0.00035171,7]
[332554898,1721293810935,-519.11934633,0.00035171,7]
[332554899,1721293810960,-519.11934633,0.00035171,7]
[332554900,1721293810986,-519.11934633,0.00035171,7]
[332554901,1721293811010,-519.11934633,0.00035171,7]
[332554902,1721293811035,-519.11934633,0.00035171,7]
[332554903,1721293811058,-1104.45388653,0.00035442,5]
[332554904,1721293811085,-1131.31512955,0.00035442,5]
[332554905,1721293811112,-500.0,0.00035616,14]
[332554906,1721293811137,-500.0,0.00035616,14]
[332554907,1721293811160,-586.67,0.00035616,14]
[332554908,1721293811184,-500.0,0.00035616,14]
[332554909,1721293811208,-500.0,0.00035616,14]
[332554910,1721293811232,-500.0,0.00035616,14]
[332554911,1721293811256,-500.0,0.00035616,14]
[332554912,1721293811278,-500.0,0.00035616,14]
[332554913,1721293811306,-500.0,0.00035616,14]
[332554914,1721293811330,-500.0,0.00035616,14]
[332554915,1721293811353,-500.0,0.00035616,14]
[332554916,1721293811378,-500.0,0.00035616,14]
[332554917,1721293811407,-500.0,0.00035616,14]
[332554918,1721293811441,-500.0,0.00035616,14]
[332554919,1721293811675,-500.0,0.00035616,14]
[332554920,1721293811700,-500.0,0.00035616,14]
[332554921,1721293811726,-500.0,0.00035616,14]
[332554922,1721293811752,-500.0,0.00035616,14]
[332554923,1721293811776,-500.0,0.00035616,14]
[332554924,1721293811799,-500.0,0.00035616,14]
[332554925,1721293811824,-500.0,0.00035616,14]
[332554926,1721293811847,-500.0,0.00035616,14]
[332554927,1721293811870,-500.0,0.00035616,14]
[332554928,1721293811897,-500.0,0.00035616,14]
[332554929,1721293811964,-500.0,0.00035616,14]
[332554930,1721293811989,-500.0,0.00035616,14]
[332554931,1721293812017,-500.0,0.00035616,14]
[332554932,1721293812047,-500.0,0.00035616,14]
[332554933,1721293812072,-500.0,0.00035616,14]
[332554934,1721293812096,-500.0,0.00035616,14]
[332554935,1721293812120,-500.0,0.00035616,14]
[332554936,1721293812142,-188.15,0.00035616,14]
[332554937,1721293812165,-500.0,0.00035616,14]
[332554938,1721293812196,-500.0,0.00035616,14]
[332554939,1721293812220,-500.0,0.00035616,14]
[332554940,1721293812247,-500.0,0.00035616,14]
[332554941,1721293812272,-500.0,0.00035616,14]
[332554942,1721293812295,-500.0,0.00035616,14]
[332554943,1721293812319,-500.0,0.00035616,14]
[332554944,1721293812343,-500.0,0.00035616,14]
[332554945,1721293812366,-500.0,0.00035616,14]
[332554946,1721293812390,-500.0,0.00035616,14]
[332554947,1721293812415,-500.0,0.00035616,14]
[332554948,1721293812439,-500.0,0.00035616,14]
[332554949,1721293812464,-500.0,0.00035616,14]
[332554950,1721293812488,-500.0,0.00035616,14]
[332554951,1721293812512,-500.0,0.00035616,14]
[332554952,1721293812538,-500.0,0.00035616,14]
[332554953,1721293812561,-500.0,0.00035616,14]
[332554954,1721293812585,-500.0,0.00035616,14]
[332554955,1721293812607,-500.0,0.00035616,14]
[332554956,1721293812636,-500.0,0.00035616,14]
[332554957,1721293812669,-500.0,0.00035616,14]
[332554958,1721293812706,-500.0,0.00035616,14]
[332554959,1721293812731,-500.0,0.00035616,14]
[332554960,1721293812757,-500.0,0.00035616,14]
[332554961,1721293812783,-500.0,0.00035616,14]
[332554962,1721293812808,-500.0,0.00035616,14]
[332554963,1721293812832,-500.0,0.00035616,14]
[332554964,1721293812864,-500.0,0.00035616,14]
[332554965,1721293812895,-500.0,0.00035616,14]
[332554966,1721293812922,-500.0,0.00035616,14]
[332554967,1721293812946,-500.0,0.00035616,14]
[332554968,1721293812971,-500.0,0.00035616,14]
[332554969,1721293812995,-500.0,0.00035616,14]
[332554970,1721293813018,-12.99076545,0.00035616,14]
[332554972,1721293827189,-1042.06,0.00027397,10]
[332554973,1721293827217,-868.38,0.00027397,10]
[332554974,1721293827242,-150.0,0.00033148,7]
[332554975,1721293827267,-487.00923455,0.00035616,14]
[332554976,1721293827290,-500.0,0.00035616,14]
[332554977,1721293827313,-500.0,0.00035616,14]
[332554978,1721293827337,-500.0,0.00035616,14]
[332554979,1721293827362,-500.0,0.00035616,14]
[332554980,1721293827387,-500.0,0.00035616,14]
[332554981,1721293827411,-500.0,0.00035616,14]
[332554982,1721293827437,-500.0,0.00035616,14]
[332554983,1721293827463,-500.0,0.00035616,14]
[332554984,1721293827491,-391.74,0.00035616,14]
[332554985,1721293827516,-500.0,0.00035616,14]
[332554986,1721293827542,-500.0,0.00035616,14]
[332554987,1721293827567,-500.0,0.00035616,14]
[332554988,1721293827592,-500.0,0.00035616,14]
[332554989,1721293827616,-500.0,0.00035616,14]
[332554990,1721293827640,-500.0,0.00035616,14]
[332554991,1721293827665,-500.0,0.00035616,14]
[332554992,1721293827689,-313.03300151,0.00035616,14]
[332554993,1721293827715,-500.0,0.00035616,14]
[332554994,1721293827738,-500.0,0.00035616,14]
[332554995,1721293827762,-500.0,0.00035616,14]
[332554996,1721293827788,-500.0,0.00035616,14]
[332554997,1721293827812,-500.0,0.00035616,14]
[332554998,1721293827836,-500.0,0.00035616,14]
[332554999,1721293827874,-500.0,0.00035616,14]
[332555000,1721293827905,-500.0,0.00035616,14]
[332555001,1721293827931,-500.0,0.00035616,14]
[332555002,1721293827956,-500.0,0.00035616,14]
[332555003,1721293827986,-500.0,0.00035616,14]
[332555004,1721293828017,-500.0,0.00035616,14]
[332555005,1721293828043,-500.0,0.00035616,14]
[332555006,1721293828070,-500.0,0.00035616,14]
[332555007,1721293828095,-500.0,0.00035616,14]
[332555008,1721293828119,-500.0,0.00035616,14]
[332555009,1721293828144,-500.0,0.00035616,14]
[332555010,1721293828169,-500.0,0.00035616,14]
[332555011,1721293828194,-500.0,0.00035616,14]
[332555012,1721293828220,-500.0,0.00035616,14]
[332555013,1721293828244,-500.0,0.00035616,14]
[332555014,1721293828269,-500.0,0.00035616,14]
[332555015,1721293828293,-500.0,0.00035616,14]
[332555016,1721293828644,-500.0,0.00035616,14]
[332555017,1721293828669,-500.0,0.00035616,14]
[332555018,1721293828692,-151.391454,0.00035616,7]
[332555019,1721293828717,-500.0,0.00035616,14]
[332555020,1721293828740,-462.35,0.00035616,14]
[332555021,1721293828763,-177.35674562,0.00035616,14]
[332555022,1721293828789,-500.0,0.00035616,14]
[332555023,1721293828814,-500.0,0.00035616,14]
[332555024,1721293828840,-500.0,0.00035616,14]
[332555025,1721293828864,-189.04,0.00035616,14]